[Event "Titled Tuesday Blitz May 30 Late 2023"]
[White "Turayev, Shahruh"]
[Black "Grigoriants, Sergey"]
[WhiteFideId "14003856"]
[BlackFideId "4130804"]
[WhiteElo "2185"]
[BlackElo "2502"]
[Result "1-0"]
[Round "04"]
[TimeControl "180+2"]
[Date "2023.05.31"]
[WhiteClock "0:00:26"]
[BlackClock "0:00:28"]

1. e4 {[%clk 0:02:59]}  c5 {[%clk 0:02:56]} 2. Nc3 {[%clk 0:02:59]}  Nc6 {[%clk 0:02:55]} 3. Bb5 {[%clk 0:02:58]}  Nd4 {[%clk 0:02:53]} 4. Bc4 {[%clk 0:02:59]}  g6 {[%clk 0:02:53]} 5. Nge2 {[%clk 0:02:59]}  Bg7 {[%clk 0:02:54]} 6. Nxd4 {[%clk 0:02:57]}  cxd4 {[%clk 0:02:54]} 7. Qf3 {[%clk 0:02:57]}  Nf6 {[%clk 0:02:49]} 8. e5 {[%clk 0:02:54]}  dxc3 {[%clk 0:02:47]} 9. exf6 {[%clk 0:02:54]}  cxd2+ {[%clk 0:02:31]} 10. Bxd2 {[%clk 0:02:55]}  Bxf6 {[%clk 0:02:32]} 11. O-O-O {[%clk 0:02:55]}  O-O {[%clk 0:02:29]} 12. h4 {[%clk 0:02:53]}  h5 {[%clk 0:02:25]} 13. Bg5 {[%clk 0:02:32]}  d5 {[%clk 0:02:06]} 14. Rxd5 {[%clk 0:02:20]}  Qb6 {[%clk 0:02:04]} 15. Bxf6 {[%clk 0:02:13]}  Qxf6 {[%clk 0:01:57]} 16. Qxf6 {[%clk 0:02:12]}  exf6 {[%clk 0:01:57]} 17. Rd6 {[%clk 0:02:10]}  Kg7 {[%clk 0:01:57]} 18. Re1 {[%clk 0:02:10]}  Bf5 {[%clk 0:01:37]} 19. Re7 {[%clk 0:02:09]}  Rad8 {[%clk 0:01:27]} 20. Rxd8 {[%clk 0:02:02]}  Rxd8 {[%clk 0:01:27]} 21. Rxf7+ {[%clk 0:02:02]}  Kh6 {[%clk 0:01:28]} 22. Rxb7 {[%clk 0:01:55]}  Be4 {[%clk 0:01:28]} 23. Rxa7 {[%clk 0:01:56]}  Bxg2 {[%clk 0:01:28]} 24. a4 {[%clk 0:01:54]}  g5 {[%clk 0:01:29]} 25. hxg5+ {[%clk 0:01:44]}  fxg5 {[%clk 0:01:30]} 26. Bd3 {[%clk 0:01:42]}  g4 {[%clk 0:01:28]} 27. a5 {[%clk 0:01:31]}  h4 {[%clk 0:01:26]} 28. Rh7+ {[%clk 0:01:30]}  Kg5 {[%clk 0:01:25]} 29. b4 {[%clk 0:01:30]}  Rf8 {[%clk 0:01:21]} 30. Rg7+ {[%clk 0:01:26]}  Kh5 {[%clk 0:01:14]} 31. Rh7+ {[%clk 0:01:25]}  Kg5 {[%clk 0:01:14]} 32. Rg7+ {[%clk 0:01:25]}  Kh5 {[%clk 0:01:14]} 33. Be2 {[%clk 0:01:12]}  Rxf2 {[%clk 0:00:52]} 34. Bxg4+ {[%clk 0:01:12]}  Kh6 {[%clk 0:00:52]} 35. Rc7 {[%clk 0:01:04]}  h3 {[%clk 0:00:51]} 36. Bxh3 {[%clk 0:01:03]}  Bxh3 {[%clk 0:00:52]} 37. b5 {[%clk 0:01:00]}  Kg5 {[%clk 0:00:44]} 38. a6 {[%clk 0:00:57]}  Bg2 {[%clk 0:00:38]} 39. b6 {[%clk 0:00:36]}  Rf6 {[%clk 0:00:33]} 40. Rg7+ {[%clk 0:00:34]}  Kf5 {[%clk 0:00:33]} 41. b7 {[%clk 0:00:25]}  Bxb7 {[%clk 0:00:29]} 42. axb7 {[%clk 0:00:26]}  Rb6 {[%clk 0:00:29]} 43. c4 {[%clk 0:00:27]}  Ke6 {[%clk 0:00:28]} 44. Rg6+ {[%clk 0:00:26]} 1-0


[Site "https://www.chess.com"]

[Event "Titled Tuesday Blitz May 30 Late 2023"]
[White "Pakleza, Zbigniew"]
[Black "Saveliev, Alexei"]
[WhiteFideId "1119290"]
[BlackFideId "24128546"]
[WhiteElo "2410"]
[BlackElo "2271"]
[Result "1/2-1/2"]
[Round "04"]
[TimeControl "180+2"]
[Date "2023.05.31"]
[WhiteClock "0:00:10"]
[BlackClock "0:00:26"]

1. d4 {[%clk 0:01:25]}  g6 {[%clk 0:02:58]} 2. Nf3 {[%clk 0:01:25]}  Bg7 {[%clk 0:02:59]} 3. Bf4 {[%clk 0:01:25]}  Nf6 {[%clk 0:02:58]} 4. e3 {[%clk 0:01:26]}  O-O {[%clk 0:02:58]} 5. Be2 {[%clk 0:01:26]}  d6 {[%clk 0:02:59]} 6. O-O {[%clk 0:01:26]}  b6 {[%clk 0:02:57]} 7. h3 {[%clk 0:01:26]}  Bb7 {[%clk 0:02:57]} 8. c3 {[%clk 0:01:27]}  Nbd7 {[%clk 0:02:57]} 9. Nbd2 {[%clk 0:01:26]}  Ne4 {[%clk 0:02:56]} 10. a4 {[%clk 0:01:25]}  a5 {[%clk 0:02:55]} 11. Bh2 {[%clk 0:01:24]}  e5 {[%clk 0:02:53]} 12. Qb3 {[%clk 0:01:23]}  Nxd2 {[%clk 0:02:46]} 13. Nxd2 {[%clk 0:01:24]}  Qe7 {[%clk 0:02:43]} 14. Bf3 {[%clk 0:01:22]}  Bxf3 {[%clk 0:02:31]} 15. Nxf3 {[%clk 0:01:23]}  h6 {[%clk 0:02:26]} 16. Rac1 {[%clk 0:01:21]}  Kh7 {[%clk 0:02:24]} 17. Rfd1 {[%clk 0:01:20]}  f5 {[%clk 0:02:22]} 18. Qc4 {[%clk 0:01:19]}  Rac8 {[%clk 0:02:21]} 19. b4 {[%clk 0:01:14]}  exd4 {[%clk 0:01:58]} 20. cxd4 {[%clk 0:01:08]}  axb4 {[%clk 0:01:53]} 21. Qxb4 {[%clk 0:01:09]}  Nf6 {[%clk 0:01:50]} 22. Rc6 {[%clk 0:01:04]}  Ra8 {[%clk 0:01:38]} 23. Qc4 {[%clk 0:01:00]}  Ra7 {[%clk 0:01:32]} 24. Rc1 {[%clk 0:01:00]}  Rf7 {[%clk 0:01:32]} 25. Nd2 {[%clk 0:00:43]}  Ne4 {[%clk 0:01:31]} 26. Nxe4 {[%clk 0:00:41]}  fxe4 {[%clk 0:01:31]} 27. Bg3 {[%clk 0:00:34]}  Qf6 {[%clk 0:01:26]} 28. Qd5 {[%clk 0:00:25]}  Qf5 {[%clk 0:01:23]} 29. Qxf5 {[%clk 0:00:16]}  gxf5 {[%clk 0:01:23]} 30. R6c4 {[%clk 0:00:13]}  Bf6 {[%clk 0:01:18]} 31. Kf1 {[%clk 0:00:13]}  Kg6 {[%clk 0:01:18]} 32. Ke2 {[%clk 0:00:13]}  Bg5 {[%clk 0:01:18]} 33. R1c2 {[%clk 0:00:12]}  Bd8 {[%clk 0:01:17]} 34. Bf4 {[%clk 0:00:12]}  Bg5 {[%clk 0:01:16]} 35. Bg3 {[%clk 0:00:12]}  Bd8 {[%clk 0:01:16]} 36. Bf4 {[%clk 0:00:12]}  Bg5 {[%clk 0:01:16]} 37. Bh2 {[%clk 0:00:12]}  Bd8 {[%clk 0:01:14]} 38. f3 {[%clk 0:00:12]}  exf3+ {[%clk 0:01:00]} 39. Kxf3 {[%clk 0:00:13]}  Kf6 {[%clk 0:00:59]} 40. Bf4 {[%clk 0:00:13]}  Ke6 {[%clk 0:00:58]} 41. Bxh6 {[%clk 0:00:12]}  c5 {[%clk 0:00:47]} 42. dxc5 {[%clk 0:00:10]}  bxc5 {[%clk 0:00:45]} 43. Bf4 {[%clk 0:00:09]}  Be7 {[%clk 0:00:45]} 44. g4 {[%clk 0:00:08]}  fxg4+ {[%clk 0:00:45]} 45. hxg4 {[%clk 0:00:09]}  d5 {[%clk 0:00:46]} 46. Rxc5 {[%clk 0:00:09]}  Bxc5 {[%clk 0:00:45]} 47. Rxc5 {[%clk 0:00:09]}  Rxa4 {[%clk 0:00:46]} 48. Rc6+ {[%clk 0:00:10]}  Kd7 {[%clk 0:00:46]} 49. Rd6+ {[%clk 0:00:10]}  Ke8 {[%clk 0:00:44]} 50. Rxd5 {[%clk 0:00:11]}  Ra1 {[%clk 0:00:41]} 51. Re5+ {[%clk 0:00:10]}  Re7 {[%clk 0:00:40]} 52. Rh5 {[%clk 0:00:11]}  Rf1+ {[%clk 0:00:37]} 53. Kg2 {[%clk 0:00:11]}  Rb1 {[%clk 0:00:36]} 54. g5 {[%clk 0:00:10]}  Kf7 {[%clk 0:00:35]} 55. Rh7+ {[%clk 0:00:10]}  Ke6 {[%clk 0:00:35]} 56. Rh6+ {[%clk 0:00:09]}  Kf5 {[%clk 0:00:32]} 57. Kf3 {[%clk 0:00:09]}  Rf1+ {[%clk 0:00:31]} 58. Kg2 {[%clk 0:00:09]}  Rxf4 {[%clk 0:00:25]} 59. exf4 {[%clk 0:00:10]}  Kxf4 {[%clk 0:00:26]} 60. g6 {[%clk 0:00:09]}  Rg7 {[%clk 0:00:24]} 61. Rh4+ {[%clk 0:00:07]}  Kg5 {[%clk 0:00:24]} 62. Rh3 {[%clk 0:00:08]}  Rxg6 {[%clk 0:00:24]} 63. Rg3+ {[%clk 0:00:09]}  Kf6 {[%clk 0:00:25]} 64. Rxg6+ {[%clk 0:00:10]}  Kxg6 {[%clk 0:00:26]} 1/2-1/2


[Site "https://www.chess.com"]

[Event "Titled Tuesday Blitz May 30 Late 2023"]
[White "Makridis, Dimitrios"]
[Black "Bruedigam, Martin"]
[WhiteFideId "25864475"]
[BlackFideId "24608033"]
[WhiteElo "2277"]
[BlackElo "2331"]
[Result "0-1"]
[Round "04"]
[TimeControl "180+2"]
[Date "2023.05.31"]
[WhiteClock "0:00:26"]
[BlackClock "0:00:13"]

1. e4 {[%clk 0:02:51]}  c6 {[%clk 0:03:00]} 2. d4 {[%clk 0:02:48]}  d5 {[%clk 0:03:01]} 3. exd5 {[%clk 0:02:49]}  cxd5 {[%clk 0:03:01]} 4. Bd3 {[%clk 0:02:50]}  Nf6 {[%clk 0:03:01]} 5. h3 {[%clk 0:02:50]}  g6 {[%clk 0:03:00]} 6. Nf3 {[%clk 0:02:50]}  Bf5 {[%clk 0:03:00]} 7. O-O {[%clk 0:02:45]}  Bxd3 {[%clk 0:03:00]} 8. Qxd3 {[%clk 0:02:45]}  Nc6 {[%clk 0:02:58]} 9. c3 {[%clk 0:02:45]}  Bg7 {[%clk 0:02:59]} 10. Bg5 {[%clk 0:02:46]}  O-O {[%clk 0:02:59]} 11. Nbd2 {[%clk 0:02:46]}  a6 {[%clk 0:02:59]} 12. Rfe1 {[%clk 0:02:47]}  e6 {[%clk 0:02:56]} 13. Ne5 {[%clk 0:02:46]}  Qc7 {[%clk 0:02:56]} 14. Ndf3 {[%clk 0:02:45]}  Nd7 {[%clk 0:02:52]} 15. Ng4 {[%clk 0:02:44]}  b5 {[%clk 0:02:48]} 16. h4 {[%clk 0:02:40]}  b4 {[%clk 0:02:24]} 17. h5 {[%clk 0:02:37]}  bxc3 {[%clk 0:02:23]} 18. bxc3 {[%clk 0:02:38]}  Rfe8 {[%clk 0:02:15]} 19. g3 {[%clk 0:02:37]}  Ne7 {[%clk 0:02:12]} 20. hxg6 {[%clk 0:02:36]}  hxg6 {[%clk 0:02:11]} 21. Kg2 {[%clk 0:02:35]}  Nf5 {[%clk 0:02:09]} 22. Rh1 {[%clk 0:02:34]}  Rac8 {[%clk 0:02:08]} 23. Rac1 {[%clk 0:02:34]}  Qc4 {[%clk 0:02:07]} 24. Qd2 {[%clk 0:02:35]}  Rb8 {[%clk 0:01:43]} 25. Ne3 {[%clk 0:02:31]}  Nxe3+ {[%clk 0:01:39]} 26. Qxe3 {[%clk 0:02:32]}  Rb2 {[%clk 0:01:36]} 27. Qf4 {[%clk 0:02:30]}  Qe2 {[%clk 0:01:30]} 28. Rcf1 {[%clk 0:02:30]}  Qe4 {[%clk 0:01:28]} 29. Qd6 {[%clk 0:02:26]}  Nf8 {[%clk 0:00:36]} 30. Rh4 {[%clk 0:02:23]}  Qe2 {[%clk 0:00:36]} 31. Qf4 {[%clk 0:02:22]}  Qe4 {[%clk 0:00:30]} 32. Qxe4 {[%clk 0:02:21]}  dxe4 {[%clk 0:00:31]} 33. Rxe4 {[%clk 0:02:22]}  Rxa2 {[%clk 0:00:32]} 34. d5 {[%clk 0:02:19]}  Rc8 {[%clk 0:00:31]} 35. c4 {[%clk 0:02:16]}  Rc2 {[%clk 0:00:31]} 36. d6 {[%clk 0:02:16]}  R2xc4 {[%clk 0:00:29]} 37. Re2 {[%clk 0:02:08]}  Nd7 {[%clk 0:00:24]} 38. Rd1 {[%clk 0:02:09]}  Rc2 {[%clk 0:00:23]} 39. Re4 {[%clk 0:02:07]}  R2c4 {[%clk 0:00:22]} 40. Re3 {[%clk 0:02:00]}  a5 {[%clk 0:00:20]} 41. Rb3 {[%clk 0:01:59]}  Rb4 {[%clk 0:00:21]} 42. Ra3 {[%clk 0:01:55]}  a4 {[%clk 0:00:21]} 43. Ne1 {[%clk 0:01:47]}  Bb2 {[%clk 0:00:21]} 44. Ra2 {[%clk 0:01:42]}  a3 {[%clk 0:00:21]} 45. Nd3 {[%clk 0:01:43]}  Rb6 {[%clk 0:00:21]} 46. Be7 {[%clk 0:01:34]}  Rc2 {[%clk 0:00:18]} 47. Rb1 {[%clk 0:01:30]}  Rd2 {[%clk 0:00:15]} 48. Ne1 {[%clk 0:01:15]}  f6 {[%clk 0:00:12]} 49. Nf3 {[%clk 0:01:13]}  Rd3 {[%clk 0:00:12]} 50. Ne1 {[%clk 0:01:12]}  Rdb3 {[%clk 0:00:10]} 51. Nc2 {[%clk 0:01:12]}  Kf7 {[%clk 0:00:09]} 52. Bd8 {[%clk 0:01:09]}  R6b5 {[%clk 0:00:08]} 53. Bc7 {[%clk 0:01:06]}  e5 {[%clk 0:00:08]} 54. Ne3 {[%clk 0:01:03]}  Ke6 {[%clk 0:00:08]} 55. Nc4 {[%clk 0:01:02]}  R5b4 {[%clk 0:00:06]} 56. Nd2 {[%clk 0:01:01]}  Rd3 {[%clk 0:00:06]} 57. Nf1 {[%clk 0:00:55]}  Rc4 {[%clk 0:00:03]} 58. Ne3 {[%clk 0:00:54]}  Rc6 {[%clk 0:00:04]} 59. Nd1 {[%clk 0:00:52]}  Rd2 {[%clk 0:00:03]} 60. Kf1 {[%clk 0:00:48]}  Rcc2 {[%clk 0:00:03]} 61. Kg2 {[%clk 0:00:45]}  f5 {[%clk 0:00:04]} 62. Kh3 {[%clk 0:00:44]}  g5 {[%clk 0:00:04]} 63. Kg2 {[%clk 0:00:44]}  Nf6 {[%clk 0:00:05]} 64. Kg1 {[%clk 0:00:39]}  g4 {[%clk 0:00:05]} 65. Nxb2 {[%clk 0:00:38]}  axb2 {[%clk 0:00:04]} 66. d7 {[%clk 0:00:33]}  Nxd7 {[%clk 0:00:04]} 67. Ra6+ {[%clk 0:00:33]}  Ke7 {[%clk 0:00:04]} 68. Kg2 {[%clk 0:00:27]}  Rxf2+ {[%clk 0:00:04]} 69. Kg1 {[%clk 0:00:28]}  Rg2+ {[%clk 0:00:04]} 70. Kh1 {[%clk 0:00:28]}  Rh2+ {[%clk 0:00:05]} 71. Kg1 {[%clk 0:00:28]}  Rcg2+ {[%clk 0:00:06]} 72. Kf1 {[%clk 0:00:27]}  Rh1+ {[%clk 0:00:06]} 73. Kxg2 {[%clk 0:00:27]}  Rxb1 {[%clk 0:00:07]} 74. Bd6+ {[%clk 0:00:27]}  Ke6 {[%clk 0:00:06]} 75. Kf2 {[%clk 0:00:23]}  Kd5 {[%clk 0:00:07]} 76. Ba3 {[%clk 0:00:23]}  Ra1 {[%clk 0:00:06]} 77. Ra5+ {[%clk 0:00:21]}  Kc4 {[%clk 0:00:07]} 78. Ra4+ {[%clk 0:00:22]}  Kb3 {[%clk 0:00:07]} 79. Bxb2 {[%clk 0:00:22]}  Rxa4 {[%clk 0:00:07]} 80. Ba1 {[%clk 0:00:23]}  Ra2+ {[%clk 0:00:08]} 81. Ke3 {[%clk 0:00:22]}  Rxa1 {[%clk 0:00:09]} 82. Ke2 {[%clk 0:00:23]}  e4 {[%clk 0:00:10]} 83. Ke3 {[%clk 0:00:24]}  Rg1 {[%clk 0:00:10]} 84. Kf4 {[%clk 0:00:24]}  Rg2 {[%clk 0:00:11]} 85. Ke3 {[%clk 0:00:25]}  Rxg3+ {[%clk 0:00:12]} 86. Kf4 {[%clk 0:00:26]}  Rf3+ {[%clk 0:00:13]} 0-1


[Site "https://www.chess.com"]

[Event "Titled Tuesday Blitz May 30 Late 2023"]
[White "Grinev, Valeriy"]
[Black "Kramnik, Vladimir"]
[WhiteFideId "14117517"]
[BlackFideId "4101588"]
[WhiteElo "2366"]
[BlackElo "2703"]
[Result "0-1"]
[Round "04"]
[TimeControl "180+2"]
[Date "2023.05.31"]
[WhiteClock "0:00:49"]
[BlackClock "0:00:33"]

1. e4 {[%clk 0:03:00]}  c5 {[%clk 0:02:59]} 2. Nf3 {[%clk 0:02:59]}  e6 {[%clk 0:02:59]} 3. d4 {[%clk 0:02:55]}  cxd4 {[%clk 0:02:59]} 4. Nxd4 {[%clk 0:02:53]}  a6 {[%clk 0:02:59]} 5. Bd3 {[%clk 0:02:49]}  Nf6 {[%clk 0:03:00]} 6. O-O {[%clk 0:02:46]}  Qc7 {[%clk 0:03:00]} 7. Qe2 {[%clk 0:02:44]}  d6 {[%clk 0:03:00]} 8. f4 {[%clk 0:02:42]}  Nbd7 {[%clk 0:03:01]} 9. Kh1 {[%clk 0:02:41]}  Nc5 {[%clk 0:02:59]} 10. Nc3 {[%clk 0:02:34]}  Be7 {[%clk 0:02:57]} 11. e5 {[%clk 0:02:28]}  Nfd7 {[%clk 0:02:57]} 12. exd6 {[%clk 0:02:11]}  Qxd6 {[%clk 0:02:54]} 13. Be3 {[%clk 0:02:10]}  O-O {[%clk 0:02:37]} 14. Rad1 {[%clk 0:02:05]}  Nf6 {[%clk 0:02:32]} 15. Nb3 {[%clk 0:01:56]}  Nxd3 {[%clk 0:02:28]} 16. Rxd3 {[%clk 0:01:57]}  Qc6 {[%clk 0:02:18]} 17. Nd4 {[%clk 0:01:53]}  Qc7 {[%clk 0:02:10]} 18. Nb3 {[%clk 0:01:52]}  b5 {[%clk 0:01:59]} 19. Bd4 {[%clk 0:01:48]}  Bb7 {[%clk 0:01:57]} 20. Rg3 {[%clk 0:01:43]}  Rad8 {[%clk 0:01:41]} 21. Be5 {[%clk 0:01:43]}  Qc4 {[%clk 0:01:21]} 22. Qxc4 {[%clk 0:01:37]}  bxc4 {[%clk 0:01:21]} 23. Na5 {[%clk 0:01:33]}  Rd7 {[%clk 0:01:19]} 24. Nxc4 {[%clk 0:01:30]}  g6 {[%clk 0:01:11]} 25. Na5 {[%clk 0:01:23]}  Ba8 {[%clk 0:01:09]} 26. Nb3 {[%clk 0:01:22]}  Rc8 {[%clk 0:01:06]} 27. Nd4 {[%clk 0:01:14]}  Nh5 {[%clk 0:00:58]} 28. Rd3 {[%clk 0:01:12]}  f6 {[%clk 0:00:54]} 29. Nxe6 {[%clk 0:01:09]}  Rxd3 {[%clk 0:00:53]} 30. cxd3 {[%clk 0:01:08]}  fxe5 {[%clk 0:00:53]} 31. fxe5 {[%clk 0:01:09]}  Rc6 {[%clk 0:00:43]} 32. Nd4 {[%clk 0:01:08]}  Rc5 {[%clk 0:00:43]} 33. e6 {[%clk 0:01:05]}  Re5 {[%clk 0:00:41]} 34. Ne4 {[%clk 0:00:53]}  Bxe4 {[%clk 0:00:38]} 35. dxe4 {[%clk 0:00:53]}  Rxe4 {[%clk 0:00:38]} 36. Nc6 {[%clk 0:00:52]}  Rxe6 {[%clk 0:00:37]} 37. Nxe7+ {[%clk 0:00:51]}  Rxe7 {[%clk 0:00:38]} 38. g4 {[%clk 0:00:52]}  Ng7 {[%clk 0:00:36]} 39. Rf6 {[%clk 0:00:51]}  Ne6 {[%clk 0:00:35]} 40. Kg2 {[%clk 0:00:50]}  Kg7 {[%clk 0:00:35]} 41. Rf2 {[%clk 0:00:50]}  Nc5 {[%clk 0:00:34]} 42. Rc2 {[%clk 0:00:50]}  Nd3 {[%clk 0:00:34]} 43. b3 {[%clk 0:00:49]}  Ne1+ {[%clk 0:00:33]} 0-1


[Site "https://www.chess.com"]

[Event "Titled Tuesday Blitz May 30 Late 2023"]
[White "Moussard, Jules"]
[Black "Kleiman, Jake"]
[WhiteFideId "642908"]
[BlackFideId "2020041"]
[WhiteElo "2610"]
[BlackElo "2592"]
[Result "1-0"]
[Round "04"]
[TimeControl "180+2"]
[Date "2023.05.31"]
[WhiteClock "0:00:28"]
[BlackClock "0:00:05"]

1. d4 {[%clk 0:02:56]}  Nf6 {[%clk 0:03:00]} 2. Nf3 {[%clk 0:02:56]}  e6 {[%clk 0:03:00]} 3. c4 {[%clk 0:02:55]}  Bb4+ {[%clk 0:03:01]} 4. Bd2 {[%clk 0:02:54]}  Bxd2+ {[%clk 0:03:01]} 5. Qxd2 {[%clk 0:02:53]}  d5 {[%clk 0:03:01]} 6. Nc3 {[%clk 0:02:53]}  O-O {[%clk 0:03:02]} 7. e3 {[%clk 0:02:53]}  Qe7 {[%clk 0:03:02]} 8. cxd5 {[%clk 0:02:51]}  exd5 {[%clk 0:03:02]} 9. Be2 {[%clk 0:02:49]}  Nc6 {[%clk 0:03:01]} 10. O-O {[%clk 0:02:48]}  Bg4 {[%clk 0:03:00]} 11. Rac1 {[%clk 0:02:39]}  Rad8 {[%clk 0:03:00]} 12. a3 {[%clk 0:02:35]}  Rfe8 {[%clk 0:02:58]} 13. b4 {[%clk 0:02:34]}  Ne4 {[%clk 0:02:56]} 14. Nxe4 {[%clk 0:02:29]}  dxe4 {[%clk 0:02:50]} 15. Ne1 {[%clk 0:02:29]}  Bxe2 {[%clk 0:02:48]} 16. Qxe2 {[%clk 0:02:30]}  Rd6 {[%clk 0:02:43]} 17. Rc5 {[%clk 0:02:17]}  Nd8 {[%clk 0:02:32]} 18. Nc2 {[%clk 0:02:05]}  c6 {[%clk 0:02:27]} 19. b5 {[%clk 0:02:02]}  b6 {[%clk 0:02:12]} 20. Rc3 {[%clk 0:01:58]}  Rg6 {[%clk 0:01:56]} 21. Nb4 {[%clk 0:01:53]}  Qg5 {[%clk 0:01:52]} 22. g3 {[%clk 0:01:50]}  cxb5 {[%clk 0:01:52]} 23. Rc8 {[%clk 0:01:44]}  a5 {[%clk 0:01:14]} 24. Na6 {[%clk 0:01:43]}  Qf5 {[%clk 0:01:09]} 25. Rfc1 {[%clk 0:01:37]}  Qh3 {[%clk 0:00:54]} 26. Qxb5 {[%clk 0:01:35]}  Rf8 {[%clk 0:00:50]} 27. Qf1 {[%clk 0:01:34]}  Qf5 {[%clk 0:00:43]} 28. a4 {[%clk 0:01:25]}  h5 {[%clk 0:00:42]} 29. h4 {[%clk 0:01:17]}  Qg4 {[%clk 0:00:37]} 30. Nb8 {[%clk 0:01:09]}  Ne6 {[%clk 0:00:31]} 31. Nd7 {[%clk 0:01:05]}  Rxc8 {[%clk 0:00:19]} 32. Rxc8+ {[%clk 0:01:06]}  Kh7 {[%clk 0:00:19]} 33. Ne5 {[%clk 0:01:06]}  Qf5 {[%clk 0:00:18]} 34. Qb5 {[%clk 0:01:03]}  Nxd4 {[%clk 0:00:08]} 35. Qe8 {[%clk 0:00:30]}  Ne2+ {[%clk 0:00:07]} 36. Kf1 {[%clk 0:00:28]}  Nxg3+ {[%clk 0:00:07]} 37. Ke1 {[%clk 0:00:29]}  Qxc8 {[%clk 0:00:05]} 38. Qxc8 {[%clk 0:00:28]} 1-0


[Site "https://www.chess.com"]

[Event "Titled Tuesday Blitz May 30 Late 2023"]
[White "Marra, Eduardo da Costa"]
[Black "Sjugirov, Sanan"]
[WhiteFideId "2106990"]
[BlackFideId "4189302"]
[WhiteElo "2252"]
[BlackElo "2569"]
[Result "0-1"]
[Round "04"]
[TimeControl "180+2"]
[Date "2023.05.31"]
[WhiteClock "0:00:01"]
[BlackClock "0:01:36"]

1. d3 {[%clk 0:03:00]}  e5 {[%clk 0:02:58]} 2. Nf3 {[%clk 0:03:01]}  Nc6 {[%clk 0:02:58]} 3. c4 {[%clk 0:03:00]}  Nf6 {[%clk 0:02:57]} 4. Nc3 {[%clk 0:03:00]}  Bb4 {[%clk 0:02:56]} 5. e4 {[%clk 0:02:58]}  d6 {[%clk 0:02:55]} 6. Be2 {[%clk 0:02:58]}  O-O {[%clk 0:02:53]} 7. O-O {[%clk 0:02:58]}  a6 {[%clk 0:02:45]} 8. Bg5 {[%clk 0:02:48]}  Bxc3 {[%clk 0:02:33]} 9. bxc3 {[%clk 0:02:47]}  h6 {[%clk 0:02:34]} 10. Bd2 {[%clk 0:02:45]}  Nh7 {[%clk 0:02:29]} 11. Ne1 {[%clk 0:02:40]}  f5 {[%clk 0:02:28]} 12. exf5 {[%clk 0:02:37]}  Bxf5 {[%clk 0:02:29]} 13. Bg4 {[%clk 0:02:37]}  Qd7 {[%clk 0:02:23]} 14. Bxf5 {[%clk 0:02:34]}  Qxf5 {[%clk 0:02:24]} 15. f3 {[%clk 0:02:26]}  Nf6 {[%clk 0:02:22]} 16. Qe2 {[%clk 0:02:23]}  Rae8 {[%clk 0:02:20]} 17. Nc2 {[%clk 0:02:21]}  Nh5 {[%clk 0:02:16]} 18. Nb4 {[%clk 0:02:17]}  Nxb4 {[%clk 0:02:13]} 19. cxb4 {[%clk 0:02:18]}  Nf4 {[%clk 0:02:13]} 20. Bxf4 {[%clk 0:02:16]}  exf4 {[%clk 0:02:14]} 21. Qd2 {[%clk 0:02:07]}  Re3 {[%clk 0:02:14]} 22. Rad1 {[%clk 0:02:05]}  Rfe8 {[%clk 0:02:14]} 23. Rf2 {[%clk 0:02:06]}  Qe6 {[%clk 0:02:03]} 24. a3 {[%clk 0:01:36]}  d5 {[%clk 0:02:03]} 25. h3 {[%clk 0:01:09]}  d4 {[%clk 0:01:59]} 26. b5 {[%clk 0:01:01]}  Kh7 {[%clk 0:01:51]} 27. a4 {[%clk 0:00:54]}  Qg6 {[%clk 0:01:46]} 28. c5 {[%clk 0:00:38]}  axb5 {[%clk 0:01:44]} 29. axb5 {[%clk 0:00:39]}  R8e5 {[%clk 0:01:43]} 30. Qb4 {[%clk 0:00:17]}  Rxd3 {[%clk 0:01:43]} 31. Rxd3 {[%clk 0:00:16]}  Qxd3 {[%clk 0:01:44]} 32. Rd2 {[%clk 0:00:16]}  Re1+ {[%clk 0:01:36]} 33. Kh2 {[%clk 0:00:10]}  Qf1 {[%clk 0:01:37]} 34. h4 {[%clk 0:00:01]}  Qh1# {[%clk 0:01:36]} 0-1


[Site "https://www.chess.com"]

[Event "Titled Tuesday Blitz May 30 Late 2023"]
[White "Mathieu, Phileas"]
[Black "Kevlishvili, Robby"]
[WhiteFideId "36048410"]
[BlackFideId "1040634"]
[WhiteElo "2241"]
[BlackElo "2572"]
[Result "0-1"]
[Round "04"]
[TimeControl "180+2"]
[Date "2023.05.31"]
[WhiteClock "0:00:17"]
[BlackClock "0:00:30"]

1. c4 {[%clk 0:03:00]}  c6 {[%clk 0:02:59]} 2. Nf3 {[%clk 0:02:57]}  g6 {[%clk 0:02:58]} 3. g3 {[%clk 0:02:55]}  Bg7 {[%clk 0:02:59]} 4. Bg2 {[%clk 0:02:52]}  Nf6 {[%clk 0:02:57]} 5. O-O {[%clk 0:02:51]}  O-O {[%clk 0:02:58]} 6. b3 {[%clk 0:02:51]}  d5 {[%clk 0:02:57]} 7. Bb2 {[%clk 0:02:51]}  Bg4 {[%clk 0:02:57]} 8. Ne5 {[%clk 0:02:50]}  Bf5 {[%clk 0:02:56]} 9. d3 {[%clk 0:02:50]}  a5 {[%clk 0:02:56]} 10. Nd2 {[%clk 0:02:49]}  Nbd7 {[%clk 0:02:55]} 11. Nxd7 {[%clk 0:02:47]}  Qxd7 {[%clk 0:02:56]} 12. e4 {[%clk 0:02:47]}  dxe4 {[%clk 0:02:52]} 13. dxe4 {[%clk 0:02:47]}  Bg4 {[%clk 0:02:32]} 14. f3 {[%clk 0:02:31]}  Rfd8 {[%clk 0:02:31]} 15. Bc3 {[%clk 0:02:07]}  Qd3 {[%clk 0:02:16]} 16. Qc1 {[%clk 0:01:53]}  Ne8 {[%clk 0:02:03]} 17. Bxg7 {[%clk 0:01:47]}  Nxg7 {[%clk 0:02:04]} 18. Rd1 {[%clk 0:01:47]}  Qe3+ {[%clk 0:01:53]} 19. Kh1 {[%clk 0:01:43]}  Be6 {[%clk 0:01:51]} 20. Nf1 {[%clk 0:01:43]}  Qf2 {[%clk 0:01:44]} 21. Qe3 {[%clk 0:01:30]}  Qb2 {[%clk 0:01:43]} 22. Rdb1 {[%clk 0:01:12]}  Qa3 {[%clk 0:01:38]} 23. Kg1 {[%clk 0:01:07]}  Rd7 {[%clk 0:01:35]} 24. Qf2 {[%clk 0:01:00]}  Rad8 {[%clk 0:01:35]} 25. Rb2 {[%clk 0:01:01]}  a4 {[%clk 0:01:23]} 26. Rc1 {[%clk 0:00:54]}  Qb4 {[%clk 0:01:21]} 27. Qe1 {[%clk 0:00:43]}  Qc5+ {[%clk 0:01:16]} 28. Qf2 {[%clk 0:00:43]}  Qb4 {[%clk 0:01:00]} 29. Qe1 {[%clk 0:00:43]}  Qa3 {[%clk 0:01:01]} 30. Qf2 {[%clk 0:00:42]}  Rd4 {[%clk 0:00:58]} 31. Rcc2 {[%clk 0:00:39]}  Bc8 {[%clk 0:00:58]} 32. Ne3 {[%clk 0:00:33]}  e5 {[%clk 0:00:57]} 33. h4 {[%clk 0:00:33]}  h5 {[%clk 0:00:53]} 34. Qe2 {[%clk 0:00:30]}  Rd3 {[%clk 0:00:51]} 35. Rd2 {[%clk 0:00:27]}  Rxd2 {[%clk 0:00:49]} 36. Rxd2 {[%clk 0:00:27]}  Rxd2 {[%clk 0:00:48]} 37. Qxd2 {[%clk 0:00:28]}  Ne6 {[%clk 0:00:49]} 38. bxa4 {[%clk 0:00:20]}  Nd4 {[%clk 0:00:47]} 39. a5 {[%clk 0:00:19]}  Be6 {[%clk 0:00:47]} 40. f4 {[%clk 0:00:19]}  f6 {[%clk 0:00:35]} 41. f5 {[%clk 0:00:18]}  Bf7 {[%clk 0:00:34]} 42. Bh3 {[%clk 0:00:17]}  Nf3+ {[%clk 0:00:30]} 0-1


[Site "https://www.chess.com"]